[Event "Queens Festival Final-B 2022"]
[Site "Tornelo"]
[Date "2022.06.25"]
[Round "9.5"]
[White "Vujcic, Milena"]
[Black "Mammadova, Aysel"]
[Result "1/2-1/2"]
[ECO "C65"]
[WhiteElo "1987"]
[BlackElo "1893"]
[Annotator "NA RC"]
[PlyCount "155"]
[EventDate "2022.06.24"]
[EventType "tourn"]
[EventCountry "NET"]
[SourceTitle "playchess.com"]
[Source "ChessBase"]
[SourceQuality "1"]
[TimeControl "180+2"]

1. e4 {[%emt 0:00:02]} e5 {[%emt 0:00:05]} 2. Nf3 {[%emt 0:00:02]} Nc6 {[%emt 0:00:02]} 3. Bb5 {[%emt 0:00:02]} Nf6 {[%emt 0:00:02]} 4. O-O {[%emt 0:00:04]} Bc5 {[%emt 0:00:03]} 5. c3 {[%emt 0:00:15]} O-O {[%emt 0:00:03]} 6. d4 {[%emt 0:00:02]} exd4 {[%emt 0:00:02]} 7. cxd4 {[%emt 0:00:02]} Be7 {[%emt 0:00:03]} 8. d5 {[%emt 0:00:10]} Nb8 {[%emt 0:00:02]} 9. e5 {[%emt 0:00:03]} Nxd5 {[%emt 0:00:09]} 10. Qxd5 {[%emt 0:00:04]} c6 {[%emt 0:00:02]} 11. Bxc6 {[%emt 0:00:01]} dxc6 {[%emt 0:00:03]} 12. Qe4 {[%emt 0:00:02]} Be6 {[%emt 0:00:04]} 13. Nc3 {[%emt 0:00:02]} Na6 {[%emt 0:00:02]} 14. Be3 {[%emt 0:00:02]} Qc8 {[%emt 0:00:05]} 15. Bg5 {[%emt 0:00:08]} f6 {[%emt 0:00:14]} 16. exf6 {[%emt 0:00:07]} Bxf6 {[%emt 0:00:04]} 17. Rfe1 {[%emt 0:00:04]} Bf5 {[%emt 0:00:08]} 18. Qc4+ {[%emt 0:00:07]} Kh8 {[%emt 0:00:02]} 19. Bxf6 {[%emt 0:00:04]} Rxf6 {[%emt 0:00:02]} 20. Ng5 {[%emt 0:00:01]} Qf8 {[%emt 0:00:05]} 21. Nce4 {[%emt 0:00:24]} Bxe4 {[%emt 0:00:02]} 22. Qxe4 {[%emt 0:00:02]} Rg6 {[%emt 0:00:14]} 23. h4 {[%emt 0:00:30]} Nc5 {[%emt 0:00:04]} 24. Qc2 {[%emt 0:00:03]} Rh6 {[%emt 0:00:16]} 25. g3 {[%emt 0:00:02]} Nd7 {[%emt 0:00:07]} 26. Rad1 {[%emt 0:00:04]} Nf6 {[%emt 0:00:04]} 27. Qb3 {[%emt 0:00:03]} Nd5 {[%emt 0:00:04]} 28. Qxb7 {[%emt 0:00:05]} Rf6 {[%emt 0:00:04]} 29. f4 {[%emt 0:00:19]} Rb8 {[%emt 0:00:07]} 30. Qd7 {[%emt 0:00:06]} Nb6 {[%emt 0:00:19]} 31. Qd3 {[%emt 0:00:06]} Qc5+ {[%emt 0:00:09]} 32. Kh1 {[%emt 0:00:06]} Qd5+ {[%emt 0:00:03]} 33. Qxd5 {[%emt 0:00:02]} Nxd5 {[%emt 0:00:02]} 34. b3 {[%emt 0:00:01]} h6 {[%emt 0:00:08]} 35. Ne4 {[%emt 0:00:02]} Rg6 {[%emt 0:00:03]} 36. f5 {[%emt 0:00:04]} Rg4 {[%emt 0:00:02]} 37. Kh2 {[%emt 0:00:04]} Re8 {[%emt 0:00:04]} 38. Nf2 {[%emt 0:00:03]} Rxe1 {[%emt 0:00:05]} 39. Rxe1 {[%emt 0:00:02]} Rd4 {[%emt 0:00:02]} 40. Re2 {[%emt 0:00:03]} c5 {[%emt 0:00:09]} 41. Kg2 {[%emt 0:00:07]} Kg8 {[%emt 0:00:07]} 42. Ne4 {[%emt 0:00:05]} c4 {[%emt 0:00:06]} 43. bxc4 {[%emt 0:00:06]} Rxc4 {[%emt 0:00:01]} 44. Nd6 {[%emt 0:00:02]} Rc7 {[%emt 0:00:03]} 45. Nb5 {[%emt 0:00:02]} Rd7 {[%emt 0:00:03]} 46. Kf3 {[%emt 0:00:07]} Nf6 {[%emt 0:00:04]} 47. Re3 {[%emt 0:00:10]} a6 {[%emt 0:00:02]} 48. Nc3 {[%emt 0:00:02]} Kf7 {[%emt 0:00:03]} 49. g4 {[%emt 0:00:03]} Rc7 {[%emt 0:00:03]} 50. g5 {[%emt 0:00:03]} hxg5 {[%emt 0:00:01]} 51. hxg5 {[%emt 0:00:01]} Nd7 {[%emt 0:00:04]} 52. Nd5 {[%emt 0:00:01]} Rc8 {[%emt 0:00:06]} 53. g6+ {[%emt 0:00:04]} Kf8 {[%emt 0:00:02]} 54. Kf4 {[%emt 0:00:02]} Nc5 {[%emt 0:00:03]} 55. Kg5 {[%emt 0:00:05]} Rd8 {[%emt 0:00:04]} 56. Nf4 {[%emt 0:00:03]} a5 {[%emt 0:00:05]} 57. Ne6+ {[%emt 0:00:03]} Nxe6+ {[%emt 0:00:02]} 58. Rxe6 {[%emt 0:00:01]} Rd2 {[%emt 0:00:05]} 59. Ra6 {[%emt 0:00:03]} Rg2+ {[%emt 0:00:03]} 60. Kf4 {[%emt 0:00:03]} Rxa2 {[%emt 0:00:02]} 61. Ke5 {[%emt 0:00:04]} Re2+ {[%emt 0:00:03]} 62. Kd5 {[%emt 0:00:02]} Rf2 {[%emt 0:00:03]} 63. Ke4 {[%emt 0:00:03]} Re2+ {[%emt 0:00:02]} 64. Kf3 {[%emt 0:00:03]} Ra2 {[%emt 0:00:03]} 65. Ra8+ {[%emt 0:00:03]} Ke7 {[%emt 0:00:02]} 66. Ra7+ {[%emt 0:00:01]} Kf6 {[%emt 0:00:03]} 67. Rf7+ {[%emt 0:00:02]} Kg5 {[%emt 0:00:02]} 68. f6 {[%emt 0:00:01]} Ra3+ {[%emt 0:00:04]} 69. Ke2 {[%emt 0:00:04]} Kxg6 {[%emt 0:00:02]} 70. Rxg7+ {[%emt 0:00:05]} Kxf6 {[%emt 0:00:02]} 71. Rb7 {[%emt 0:00:03]} a4 {[%emt 0:00:01]} 72. Kd2 {[%emt 0:00:02]} Ra1 {[%emt 0:00:03]} 73. Kc2 {[%emt 0:00:01]} a3 {[%emt 0:00:01]} 74. Ra7 {[%emt 0:00:04]} a2 {[%emt 0:00:02]} 75. Kb2 {[%emt 0:00:02]} Rh1 {[%emt 0:00:03]} 76. Rxa2 {[%emt 0:00:02]} Rh2+ {[%emt 0:00:02]} 77. Ka3 {[%emt 0:00:01]} Rxa2+ {[%emt 0:00:03]} 78. Kxa2 {[%emt 0:00:02]} 1/2-1/2